[Event "Titled Tuesday Blitz July 13 2021"]
[White "Martinez Alcantara, Jose Eduardo"]
[Black "Khusnutdinov, Rustam"]
[WhiteFideId "3805662"]
[BlackFideId "13701703"]
[WhiteElo "3001"]
[BlackElo "2863"]
[Result "1/2-1/2"]
[Round "08"]
[TimeControl "180+1"]
[Date "2021.07.13"]
[WhiteClock "0:00:06"]
[BlackClock "0:00:05"]

1. c4 {[%clk 0:03:00]}  e5 {[%clk 0:02:56]} 2. g3 {[%clk 0:03:01]}  Nc6 {[%clk 0:02:56]} 3. Nc3 {[%clk 0:02:59]}  Bc5 {[%clk 0:02:56]} 4. Bg2 {[%clk 0:02:59]}  d6 {[%clk 0:02:56]} 5. e3 {[%clk 0:02:59]}  a6 {[%clk 0:02:57]} 6. Nge2 {[%clk 0:02:59]}  Ba7 {[%clk 0:02:57]} 7. O-O {[%clk 0:02:58]}  h5 {[%clk 0:02:57]} 8. d4 {[%clk 0:02:58]}  h4 {[%clk 0:02:56]} 9. b4 {[%clk 0:02:53]}  Bg4 {[%clk 0:02:12]} 10. c5 {[%clk 0:02:42]}  Qd7 {[%clk 0:01:58]} 11. cxd6 {[%clk 0:02:13]}  cxd6 {[%clk 0:01:57]} 12. dxe5 {[%clk 0:02:13]}  Nxe5 {[%clk 0:01:49]} 13. Qd5 {[%clk 0:02:13]}  hxg3 {[%clk 0:01:41]} 14. fxg3 {[%clk 0:02:06]}  Rb8 {[%clk 0:01:18]} 15. Nd4 {[%clk 0:01:59]}  Nf6 {[%clk 0:01:16]} 16. Rxf6 {[%clk 0:01:56]}  gxf6 {[%clk 0:01:16]} 17. Ne4 {[%clk 0:01:57]}  Rh6 {[%clk 0:01:10]} 18. b5 {[%clk 0:01:32]}  Be6 {[%clk 0:01:03]} 19. Qxd6 {[%clk 0:01:10]}  Rd8 {[%clk 0:00:56]} 20. Nxf6+ {[%clk 0:00:54]}  Rxf6 {[%clk 0:00:56]} 21. Qxe5 {[%clk 0:00:55]}  Qe7 {[%clk 0:00:39]} 22. bxa6 {[%clk 0:00:45]}  bxa6 {[%clk 0:00:39]} 23. a4 {[%clk 0:00:30]}  Bd7 {[%clk 0:00:38]} 24. Qxe7+ {[%clk 0:00:21]}  Kxe7 {[%clk 0:00:39]} 25. a5 {[%clk 0:00:18]}  Rc8 {[%clk 0:00:38]} 26. Bd2 {[%clk 0:00:18]}  Ke8 {[%clk 0:00:36]} 27. Bf1 {[%clk 0:00:16]}  Rh6 {[%clk 0:00:32]} 28. Rb1 {[%clk 0:00:12]}  Rb8 {[%clk 0:00:31]} 29. Rc1 {[%clk 0:00:10]}  Rb2 {[%clk 0:00:31]} 30. Rc2 {[%clk 0:00:06]}  Bxd4 {[%clk 0:00:31]} 31. exd4 {[%clk 0:00:05]}  Rxc2 {[%clk 0:00:31]} 32. Bxh6 {[%clk 0:00:06]}  Ra2 {[%clk 0:00:28]} 33. Bxa6 {[%clk 0:00:05]}  Rxa5 {[%clk 0:00:28]} 34. Be2 {[%clk 0:00:04]}  Ra2 {[%clk 0:00:27]} 35. Bf3 {[%clk 0:00:04]}  Bh3 {[%clk 0:00:26]} 36. d5 {[%clk 0:00:02]}  Kd7 {[%clk 0:00:27]} 37. Bg7 {[%clk 0:00:03]}  Rd2 {[%clk 0:00:24]} 38. Be5 {[%clk 0:00:02]}  Ke7 {[%clk 0:00:23]} 39. Bf4 {[%clk 0:00:02]}  Ra2 {[%clk 0:00:22]} 40. Be5 {[%clk 0:00:02]}  Rd2 {[%clk 0:00:22]} 41. Bf4 {[%clk 0:00:02]}  Ra2 {[%clk 0:00:22]} 42. g4 {[%clk 0:00:03]}  f6 {[%clk 0:00:20]} 43. g5 {[%clk 0:00:03]}  Ra4 {[%clk 0:00:18]} 44. gxf6+ {[%clk 0:00:02]}  Kxf6 {[%clk 0:00:19]} 45. Bg3 {[%clk 0:00:01]}  Bg4 {[%clk 0:00:19]} 46. Bg2 {[%clk 0:00:01]}  Ra2 {[%clk 0:00:18]} 47. Bf1 {[%clk 0:00:01]}  Bf3 {[%clk 0:00:17]} 48. d6 {[%clk 0:00:02]}  Bc6 {[%clk 0:00:17]} 49. Bc4 {[%clk 0:00:02]}  Rg2+ {[%clk 0:00:17]} 50. Kf1 {[%clk 0:00:02]}  Rc2 {[%clk 0:00:18]} 51. Bd3 {[%clk 0:00:03]}  Rd2 {[%clk 0:00:18]} 52. Be2 {[%clk 0:00:02]}  Rd4 {[%clk 0:00:17]} 53. Kf2 {[%clk 0:00:03]}  Re4 {[%clk 0:00:16]} 54. Bd3 {[%clk 0:00:03]}  Ra4 {[%clk 0:00:16]} 55. Bc2 {[%clk 0:00:03]}  Ra2 {[%clk 0:00:16]} 56. Ke3 {[%clk 0:00:04]}  Rxc2 {[%clk 0:00:16]} 57. Kd4 {[%clk 0:00:05]}  Rd2+ {[%clk 0:00:16]} 58. Kc5 {[%clk 0:00:06]}  Bd7 {[%clk 0:00:17]} 59. Bf4 {[%clk 0:00:06]}  Rd1 {[%clk 0:00:17]} 60. Bg3 {[%clk 0:00:07]}  Ke6 {[%clk 0:00:18]} 61. Kc4 {[%clk 0:00:07]}  Rd5 {[%clk 0:00:18]} 62. Kc3 {[%clk 0:00:07]}  Bc6 {[%clk 0:00:19]} 63. Kc4 {[%clk 0:00:08]}  Kd7 {[%clk 0:00:19]} 64. Kc3 {[%clk 0:00:08]}  Rh5 {[%clk 0:00:19]} 65. Kd4 {[%clk 0:00:08]}  Bd5 {[%clk 0:00:20]} 66. Ke3 {[%clk 0:00:08]}  Be6 {[%clk 0:00:20]} 67. Kf4 {[%clk 0:00:09]}  Kc6 {[%clk 0:00:21]} 68. Ke4 {[%clk 0:00:09]}  Bd7 {[%clk 0:00:21]} 69. Kd4 {[%clk 0:00:09]}  Rg5 {[%clk 0:00:21]} 70. Ke4 {[%clk 0:00:09]}  Ra5 {[%clk 0:00:21]} 71. Kd4 {[%clk 0:00:09]}  Ra8 {[%clk 0:00:20]} 72. Ke5 {[%clk 0:00:10]}  Re8+ {[%clk 0:00:21]} 73. Kf6 {[%clk 0:00:11]}  Kd5 {[%clk 0:00:21]} 74. Kf7 {[%clk 0:00:11]}  Re4 {[%clk 0:00:21]} 75. Kf6 {[%clk 0:00:11]}  Re6+ {[%clk 0:00:20]} 76. Kf7 {[%clk 0:00:12]}  Ke4 {[%clk 0:00:20]} 77. Kg7 {[%clk 0:00:09]}  Kf5 {[%clk 0:00:20]} 78. Kf7 {[%clk 0:00:10]}  Re2 {[%clk 0:00:20]} 79. Kg7 {[%clk 0:00:10]}  Be8 {[%clk 0:00:18]} 80. Kh6 {[%clk 0:00:04]}  Re6+ {[%clk 0:00:16]} 81. Kg7 {[%clk 0:00:04]}  Bc6 {[%clk 0:00:16]} 82. Kf7 {[%clk 0:00:05]}  Re4 {[%clk 0:00:16]} 83. Kg7 {[%clk 0:00:04]}  Be8 {[%clk 0:00:16]} 84. Kh7 {[%clk 0:00:02]}  Kf6 {[%clk 0:00:16]} 85. Kh6 {[%clk 0:00:03]}  Re6 {[%clk 0:00:15]} 86. Kh7 {[%clk 0:00:02]}  Bg6+ {[%clk 0:00:15]} 87. Kh6 {[%clk 0:00:02]}  Re8 {[%clk 0:00:15]} 88. Bh4+ {[%clk 0:00:03]}  Kf5 {[%clk 0:00:14]} 89. Kg7 {[%clk 0:00:03]}  Ke6 {[%clk 0:00:04]} 90. Kxg6 {[%clk 0:00:04]}  Kxd6 {[%clk 0:00:05]} 91. Bf6 {[%clk 0:00:05]}  Re2 {[%clk 0:00:05]} 92. h4 {[%clk 0:00:05]}  Rh2 {[%clk 0:00:05]} 93. Bg5 {[%clk 0:00:05]}  Rxh4 {[%clk 0:00:05]} 94. Bxh4 {[%clk 0:00:06]} 1/2-1/2


[Site "https://www.chess.com"]

[Event "Titled Tuesday Blitz July 13 2021"]
[White "Matinian, Nikita"]
[Black "Bortnyk, Olexandr"]
[WhiteFideId "24129100"]
[BlackFideId "14120828"]
[WhiteElo "2410"]
[BlackElo "2723"]
[Result "1-0"]
[Round "08"]
[TimeControl "180+1"]
[Date "2021.07.13"]
[WhiteClock "0:00:02"]
[BlackClock "0:00:01"]

1. e4 {[%clk 0:03:00]}  Nf6 {[%clk 0:02:56]} 2. e5 {[%clk 0:03:01]}  Nd5 {[%clk 0:02:56]} 3. d4 {[%clk 0:03:01]}  d6 {[%clk 0:02:54]} 4. Nf3 {[%clk 0:03:02]}  dxe5 {[%clk 0:02:54]} 5. Nxe5 {[%clk 0:03:03]}  g6 {[%clk 0:02:51]} 6. c4 {[%clk 0:03:00]}  Nb6 {[%clk 0:02:38]} 7. c5 {[%clk 0:03:00]}  Nd5 {[%clk 0:02:38]} 8. Nc3 {[%clk 0:03:00]}  Bg7 {[%clk 0:02:07]} 9. Bc4 {[%clk 0:02:41]}  c6 {[%clk 0:01:45]} 10. Nxd5 {[%clk 0:02:04]}  cxd5 {[%clk 0:01:46]} 11. Bb5+ {[%clk 0:02:01]}  Nd7 {[%clk 0:01:44]} 12. Qb3 {[%clk 0:01:45]}  O-O {[%clk 0:01:38]} 13. Bxd7 {[%clk 0:01:37]}  Bxd7 {[%clk 0:01:39]} 14. Qxb7 {[%clk 0:01:33]}  Bf5 {[%clk 0:00:32]} 15. O-O {[%clk 0:01:17]}  Re8 {[%clk 0:00:20]} 16. Bf4 {[%clk 0:01:07]}  Rb8 {[%clk 0:00:18]} 17. Qxa7 {[%clk 0:01:06]}  Rxb2 {[%clk 0:00:19]} 18. Rfe1 {[%clk 0:00:49]}  Qa8 {[%clk 0:00:18]} 19. Qxa8 {[%clk 0:00:41]}  Rxa8 {[%clk 0:00:18]} 20. Nc6 {[%clk 0:00:41]}  Kf8 {[%clk 0:00:07]} 21. Rxe7 {[%clk 0:00:19]}  Raxa2 {[%clk 0:00:04]} 22. Rae1 {[%clk 0:00:18]}  Be6 {[%clk 0:00:04]} 23. Bd6 {[%clk 0:00:15]}  Bh6 {[%clk 0:00:01]} 24. R7xe6+ {[%clk 0:00:13]}  Kg7 {[%clk 0:00:01]} 25. Be5+ {[%clk 0:00:09]}  Kf8 {[%clk 0:00:01]} 26. Rd6 {[%clk 0:00:03]}  Bd2 {[%clk 0:00:01]} 27. Rd8# {[%clk 0:00:02]} 1-0


[Site "https://www.chess.com"]

[Event "Titled Tuesday Blitz July 13 2021"]
[White "Mikaelyan, Arman"]
[Black "Maksimovic, Bojan"]
[WhiteFideId "13304852"]
[BlackFideId "14408120"]
[WhiteElo "2461"]
[BlackElo "2439"]
[Result "0-1"]
[Round "08"]
[TimeControl "180+1"]
[Date "2021.07.13"]
[WhiteClock "0:00:01"]
[BlackClock "0:00:05"]

1. Nf3 {[%clk 0:03:00]}  Nf6 {[%clk 0:02:59]} 2. c4 {[%clk 0:03:00]}  g6 {[%clk 0:02:58]} 3. g3 {[%clk 0:02:59]}  Bg7 {[%clk 0:02:58]} 4. Bg2 {[%clk 0:02:59]}  O-O {[%clk 0:02:59]} 5. O-O {[%clk 0:02:59]}  d5 {[%clk 0:02:59]} 6. cxd5 {[%clk 0:02:59]}  Nxd5 {[%clk 0:03:00]} 7. Nc3 {[%clk 0:02:59]}  Nc6 {[%clk 0:02:59]} 8. Rb1 {[%clk 0:02:48]}  Bf5 {[%clk 0:02:41]} 9. d3 {[%clk 0:02:22]}  Bxc3 {[%clk 0:02:40]} 10. e4 {[%clk 0:02:22]}  Bg7 {[%clk 0:02:16]} 11. exf5 {[%clk 0:02:21]}  Qd7 {[%clk 0:02:14]} 12. fxg6 {[%clk 0:02:20]}  hxg6 {[%clk 0:02:15]} 13. Ng5 {[%clk 0:01:48]}  Rad8 {[%clk 0:02:04]} 14. Bd2 {[%clk 0:01:32]}  Nd4 {[%clk 0:01:51]} 15. Re1 {[%clk 0:01:29]}  c6 {[%clk 0:01:40]} 16. h4 {[%clk 0:01:28]}  Qf5 {[%clk 0:01:23]} 17. Be4 {[%clk 0:01:19]}  Qf6 {[%clk 0:01:21]} 18. h5 {[%clk 0:01:15]}  Bh6 {[%clk 0:01:00]} 19. f4 {[%clk 0:01:03]}  Bxg5 {[%clk 0:00:48]} 20. fxg5 {[%clk 0:01:04]}  Qh8 {[%clk 0:00:49]} 21. hxg6 {[%clk 0:00:56]}  fxg6 {[%clk 0:00:45]} 22. Qg4 {[%clk 0:00:55]}  Nf5 {[%clk 0:00:33]} 23. Bg2 {[%clk 0:00:39]}  Qd4+ {[%clk 0:00:22]} 24. Qxd4 {[%clk 0:00:39]}  Nxd4 {[%clk 0:00:22]} 25. Bc3 {[%clk 0:00:23]}  Nf3+ {[%clk 0:00:19]} 26. Bxf3 {[%clk 0:00:23]}  Rxf3 {[%clk 0:00:20]} 27. Kg2 {[%clk 0:00:19]}  Rxd3 {[%clk 0:00:20]} 28. Be5 {[%clk 0:00:15]}  Rd2+ {[%clk 0:00:20]} 29. Kh3 {[%clk 0:00:14]}  Kf7 {[%clk 0:00:18]} 30. Kg4 {[%clk 0:00:14]}  Rf8 {[%clk 0:00:14]} 31. Rf1+ {[%clk 0:00:13]}  Ke8 {[%clk 0:00:14]} 32. Rxf8+ {[%clk 0:00:13]}  Kxf8 {[%clk 0:00:15]} 33. Rh1 {[%clk 0:00:13]}  Kf7 {[%clk 0:00:14]} 34. Rh7+ {[%clk 0:00:11]}  Ke6 {[%clk 0:00:15]} 35. Bh8 {[%clk 0:00:10]}  Ne3+ {[%clk 0:00:12]} 36. Kf3 {[%clk 0:00:10]}  Nf5 {[%clk 0:00:12]} 37. g4 {[%clk 0:00:10]}  Nd6 {[%clk 0:00:02]} 38. Rg7 {[%clk 0:00:10]}  Rd3+ {[%clk 0:00:03]} 39. Ke2 {[%clk 0:00:10]}  Rh3 {[%clk 0:00:03]} 40. Rxg6+ {[%clk 0:00:09]}  Kf7 {[%clk 0:00:04]} 41. Rh6 {[%clk 0:00:09]}  Rxh6 {[%clk 0:00:04]} 42. gxh6 {[%clk 0:00:10]}  Kg6 {[%clk 0:00:05]} 43. Bg7 {[%clk 0:00:09]}  Nf7 {[%clk 0:00:05]} 44. Kf3 {[%clk 0:00:09]}  Nxh6 {[%clk 0:00:05]} 45. Bxh6 {[%clk 0:00:08]}  Kxh6 {[%clk 0:00:06]} 46. Kf4 {[%clk 0:00:08]}  c5 {[%clk 0:00:05]} 47. Ke5 {[%clk 0:00:07]}  c4 {[%clk 0:00:06]} 48. Kd5 {[%clk 0:00:03]}  b5 {[%clk 0:00:06]} 49. Kc5 {[%clk 0:00:03]}  a6 {[%clk 0:00:06]} 50. a3 {[%clk 0:00:01]}  Kg5 {[%clk 0:00:05]} 0-1


[Site "https://www.chess.com"]

[Event "Titled Tuesday Blitz July 13 2021"]
[White "Najdin, Danil"]
[Black "Krivonosov, Oleg"]
[WhiteFideId "4172426"]
[BlackFideId "11600349"]
[WhiteElo "2193"]
[BlackElo "2469"]
[Result "0-1"]
[Round "08"]
[TimeControl "180+1"]
[Date "2021.07.13"]
[WhiteClock "0:00:02"]
[BlackClock "0:00:22"]

1. e4 {[%clk 0:03:00]}  e5 {[%clk 0:02:59]} 2. Nf3 {[%clk 0:03:01]}  Nc6 {[%clk 0:02:58]} 3. Bb5 {[%clk 0:03:01]}  Nf6 {[%clk 0:02:57]} 4. d3 {[%clk 0:02:57]}  Bc5 {[%clk 0:02:56]} 5. O-O {[%clk 0:02:51]}  Nd4 {[%clk 0:02:55]} 6. Nxd4 {[%clk 0:02:46]}  Bxd4 {[%clk 0:02:55]} 7. c3 {[%clk 0:02:46]}  Bb6 {[%clk 0:02:55]} 8. d4 {[%clk 0:02:25]}  O-O {[%clk 0:02:52]} 9. dxe5 {[%clk 0:02:09]}  Nxe4 {[%clk 0:02:51]} 10. Nd2 {[%clk 0:02:09]}  d5 {[%clk 0:02:41]} 11. Nxe4 {[%clk 0:02:05]}  dxe4 {[%clk 0:02:41]} 12. Qxd8 {[%clk 0:01:58]}  Rxd8 {[%clk 0:02:39]} 13. Bg5 {[%clk 0:01:58]}  Rd5 {[%clk 0:02:29]} 14. Rad1 {[%clk 0:01:56]}  Be6 {[%clk 0:02:29]} 15. Rxd5 {[%clk 0:01:45]}  Bxd5 {[%clk 0:02:30]} 16. b3 {[%clk 0:01:10]}  c6 {[%clk 0:02:26]} 17. Be2 {[%clk 0:01:06]}  Re8 {[%clk 0:02:20]} 18. Bf4 {[%clk 0:00:59]}  Bc7 {[%clk 0:02:14]} 19. c4 {[%clk 0:00:59]}  Be6 {[%clk 0:02:14]} 20. Rd1 {[%clk 0:00:33]}  f5 {[%clk 0:02:08]} 21. f3 {[%clk 0:00:20]}  exf3 {[%clk 0:02:05]} 22. gxf3 {[%clk 0:00:19]}  Rd8 {[%clk 0:02:03]} 23. Rxd8+ {[%clk 0:00:15]}  Bxd8 {[%clk 0:02:04]} 24. Be3 {[%clk 0:00:16]}  a6 {[%clk 0:01:59]} 25. Bc5 {[%clk 0:00:12]}  g5 {[%clk 0:01:50]} 26. Kg2 {[%clk 0:00:10]}  f4 {[%clk 0:01:43]} 27. Bd3 {[%clk 0:00:09]}  h6 {[%clk 0:01:41]} 28. Be4 {[%clk 0:00:08]}  Bc7 {[%clk 0:01:39]} 29. Bd6 {[%clk 0:00:07]}  Ba5 {[%clk 0:01:35]} 30. b4 {[%clk 0:00:07]}  Bd8 {[%clk 0:01:34]} 31. Bd3 {[%clk 0:00:06]}  b5 {[%clk 0:01:30]} 32. cxb5 {[%clk 0:00:05]}  axb5 {[%clk 0:01:31]} 33. a3 {[%clk 0:00:06]}  Kf7 {[%clk 0:01:27]} 34. Be4 {[%clk 0:00:06]}  Bd7 {[%clk 0:01:10]} 35. Kf2 {[%clk 0:00:06]}  Be7 {[%clk 0:01:08]} 36. Bc7 {[%clk 0:00:05]}  Ke6 {[%clk 0:01:01]} 37. Ke2 {[%clk 0:00:03]}  Bf8 {[%clk 0:01:00]} 38. Kd3 {[%clk 0:00:03]}  c5 {[%clk 0:00:56]} 39. Ba5 {[%clk 0:00:01]}  Kxe5 {[%clk 0:00:52]} 40. bxc5 {[%clk 0:00:01]}  Bxc5 {[%clk 0:00:51]} 41. Bb4 {[%clk 0:00:02]}  Bxb4 {[%clk 0:00:49]} 42. axb4 {[%clk 0:00:03]}  g4 {[%clk 0:00:49]} 43. fxg4 {[%clk 0:00:02]}  Bxg4 {[%clk 0:00:47]} 44. Bc6 {[%clk 0:00:02]}  Bf5+ {[%clk 0:00:37]} 45. Kd2 {[%clk 0:00:03]}  Kd4 {[%clk 0:00:35]} 46. Bxb5 {[%clk 0:00:03]}  Be4 {[%clk 0:00:35]} 47. Bf1 {[%clk 0:00:02]}  f3 {[%clk 0:00:34]} 48. b5 {[%clk 0:00:02]}  Bb7 {[%clk 0:00:32]} 49. b6 {[%clk 0:00:02]}  Kc5 {[%clk 0:00:32]} 50. Ke3 {[%clk 0:00:02]}  Kxb6 {[%clk 0:00:31]} 51. Kf4 {[%clk 0:00:02]}  Kc5 {[%clk 0:00:31]} 52. Kg4 {[%clk 0:00:02]}  Kd4 {[%clk 0:00:30]} 53. Kh5 {[%clk 0:00:03]}  Ke3 {[%clk 0:00:29]} 54. Kxh6 {[%clk 0:00:03]}  Be4 {[%clk 0:00:28]} 55. h4 {[%clk 0:00:03]}  Bd3 {[%clk 0:00:27]} 56. Bh3 {[%clk 0:00:03]}  Kf4 {[%clk 0:00:27]} 57. h5 {[%clk 0:00:02]}  Kg3 {[%clk 0:00:26]} 58. Bf1 {[%clk 0:00:01]}  Bxf1 {[%clk 0:00:25]} 59. Kg5 {[%clk 0:00:02]}  Bd3 {[%clk 0:00:22]} 0-1


[Site "https://www.chess.com"]

[Event "Titled Tuesday Blitz July 13 2021"]
[White "Nguyen, Hong Ngoc"]
[Black "Carlsson, Ludvig"]
[WhiteFideId "12403083"]
[BlackFideId "1727010"]
[WhiteElo "1830"]
[BlackElo "2147"]
[Result "0-1"]
[Round "08"]
[TimeControl "180+1"]
[Date "2021.07.13"]
[WhiteClock "0:00:08"]
[BlackClock "0:00:07"]

1. e4 {[%clk 0:03:00]}  e5 {[%clk 0:03:00]} 2. Nf3 {[%clk 0:03:00]}  Nc6 {[%clk 0:03:00]} 3. Bb5 {[%clk 0:03:00]}  Nf6 {[%clk 0:03:00]} 4. O-O {[%clk 0:03:00]}  d6 {[%clk 0:03:00]} 5. d4 {[%clk 0:02:52]}  exd4 {[%clk 0:03:00]} 6. Nxd4 {[%clk 0:02:53]}  Bd7 {[%clk 0:03:00]} 7. Bxc6 {[%clk 0:02:51]}  bxc6 {[%clk 0:03:00]} 8. Nc3 {[%clk 0:02:52]}  Be7 {[%clk 0:03:00]} 9. h3 {[%clk 0:02:49]}  O-O {[%clk 0:03:00]} 10. Re1 {[%clk 0:02:50]}  Re8 {[%clk 0:03:01]} 11. Nf3 {[%clk 0:02:37]}  Bf8 {[%clk 0:02:53]} 12. Bf4 {[%clk 0:02:36]}  Be6 {[%clk 0:02:47]} 13. Bh2 {[%clk 0:02:31]}  Rb8 {[%clk 0:02:46]} 14. b3 {[%clk 0:02:30]}  h6 {[%clk 0:02:26]} 15. e5 {[%clk 0:02:23]}  Nd5 {[%clk 0:02:25]} 16. Ne4 {[%clk 0:02:23]}  Bf5 {[%clk 0:02:19]} 17. Qd4 {[%clk 0:02:18]}  Nb4 {[%clk 0:01:36]} 18. Qc3 {[%clk 0:02:01]}  d5 {[%clk 0:01:32]} 19. Ng3 {[%clk 0:02:01]}  Bg6 {[%clk 0:01:26]} 20. Re2 {[%clk 0:01:54]}  c5 {[%clk 0:00:58]} 21. a3 {[%clk 0:01:53]}  d4 {[%clk 0:00:53]} 22. Qc4 {[%clk 0:01:35]}  Nd5 {[%clk 0:00:50]} 23. Ne4 {[%clk 0:01:35]}  Bxe4 {[%clk 0:00:40]} 24. Rxe4 {[%clk 0:01:36]}  Nc3 {[%clk 0:00:41]} 25. Ree1 {[%clk 0:01:32]}  Qd5 {[%clk 0:00:35]} 26. Nd2 {[%clk 0:01:32]}  c6 {[%clk 0:00:32]} 27. Qd3 {[%clk 0:01:26]}  Rbd8 {[%clk 0:00:30]} 28. Nc4 {[%clk 0:01:26]}  g6 {[%clk 0:00:27]} 29. Bg3 {[%clk 0:01:11]}  Qe6 {[%clk 0:00:26]} 30. Kh2 {[%clk 0:01:10]}  Qf5 {[%clk 0:00:24]} 31. Nd2 {[%clk 0:00:35]}  Qxd3 {[%clk 0:00:20]} 32. cxd3 {[%clk 0:00:36]}  Re6 {[%clk 0:00:19]} 33. f4 {[%clk 0:00:35]}  f5 {[%clk 0:00:16]} 34. Rac1 {[%clk 0:00:35]}  Rb8 {[%clk 0:00:16]} 35. Rc2 {[%clk 0:00:35]}  a5 {[%clk 0:00:16]} 36. a4 {[%clk 0:00:35]}  Be7 {[%clk 0:00:16]} 37. Bf2 {[%clk 0:00:31]}  Bd8 {[%clk 0:00:16]} 38. g3 {[%clk 0:00:31]}  Bc7 {[%clk 0:00:16]} 39. Rec1 {[%clk 0:00:27]}  Kf7 {[%clk 0:00:16]} 40. Rxc3 {[%clk 0:00:27]}  dxc3 {[%clk 0:00:17]} 41. Rxc3 {[%clk 0:00:28]}  Bb6 {[%clk 0:00:15]} 42. Nc4 {[%clk 0:00:28]}  Bc7 {[%clk 0:00:15]} 43. Bxc5 {[%clk 0:00:27]}  Ree8 {[%clk 0:00:16]} 44. d4 {[%clk 0:00:23]}  Ke6 {[%clk 0:00:16]} 45. Rd3 {[%clk 0:00:22]}  Red8 {[%clk 0:00:16]} 46. Kg2 {[%clk 0:00:21]}  Kd5 {[%clk 0:00:15]} 47. Kf3 {[%clk 0:00:21]}  Rb7 {[%clk 0:00:14]} 48. Ne3+ {[%clk 0:00:17]}  Ke6 {[%clk 0:00:14]} 49. g4 {[%clk 0:00:13]}  Rdb8 {[%clk 0:00:13]} 50. gxf5+ {[%clk 0:00:13]}  gxf5 {[%clk 0:00:14]} 51. d5+ {[%clk 0:00:14]}  cxd5 {[%clk 0:00:14]} 52. Rxd5 {[%clk 0:00:14]}  Rxb3 {[%clk 0:00:13]} 53. Bd4 {[%clk 0:00:15]}  Rd8 {[%clk 0:00:08]} 54. Rc5 {[%clk 0:00:11]}  Rxd4 {[%clk 0:00:07]} 55. Rc6+ {[%clk 0:00:11]}  Kd7 {[%clk 0:00:07]} 56. Rc2 {[%clk 0:00:07]}  Rdd3 {[%clk 0:00:07]} 57. Re2 {[%clk 0:00:08]}  Bb6 {[%clk 0:00:07]} 0-1


[Site "https://www.chess.com"]

[Event "Titled Tuesday Blitz July 13 2021"]
[White "Nguyen, Quoc Hy"]
[Black "McDonald, Mike"]
[WhiteFideId "12410853"]
[BlackFideId "2635682"]
[WhiteElo "1975"]
[BlackElo "2442"]
[Result "1-0"]
[Round "08"]
[TimeControl "180+1"]
[Date "2021.07.13"]
[WhiteClock "0:01:07"]
[BlackClock "0:00:10"]

1. d4 {[%clk 0:03:00]}  d5 {[%clk 0:02:59]} 2. c4 {[%clk 0:02:59]}  e5 {[%clk 0:03:00]} 3. dxe5 {[%clk 0:02:57]}  d4 {[%clk 0:03:01]} 4. Nf3 {[%clk 0:02:57]}  Nc6 {[%clk 0:03:01]} 5. g3 {[%clk 0:02:57]}  Nge7 {[%clk 0:03:01]} 6. Bg2 {[%clk 0:02:58]}  Ng6 {[%clk 0:03:02]} 7. O-O {[%clk 0:02:58]}  Ngxe5 {[%clk 0:03:02]} 8. b3 {[%clk 0:02:59]}  Nxf3+ {[%clk 0:03:00]} 9. Bxf3 {[%clk 0:02:59]}  Be7 {[%clk 0:03:00]} 10. Bb2 {[%clk 0:02:59]}  Bf6 {[%clk 0:02:59]} 11. Nd2 {[%clk 0:02:58]}  Bf5 {[%clk 0:02:52]} 12. Ne4 {[%clk 0:02:55]}  Bxe4 {[%clk 0:02:49]} 13. Bxe4 {[%clk 0:02:55]}  O-O {[%clk 0:02:49]} 14. Qd3 {[%clk 0:02:51]}  Ne5 {[%clk 0:02:27]} 15. Qc2 {[%clk 0:02:47]}  g6 {[%clk 0:02:11]} 16. Bxb7 {[%clk 0:02:42]}  Rb8 {[%clk 0:02:11]} 17. Bg2 {[%clk 0:02:41]}  c5 {[%clk 0:02:10]} 18. Rad1 {[%clk 0:02:39]}  Qa5 {[%clk 0:02:08]} 19. Ra1 {[%clk 0:02:13]}  Rfe8 {[%clk 0:01:52]} 20. Rfd1 {[%clk 0:02:12]}  Ng4 {[%clk 0:01:43]} 21. h3 {[%clk 0:02:09]}  Nh6 {[%clk 0:01:20]} 22. e3 {[%clk 0:02:04]}  Rbd8 {[%clk 0:01:05]} 23. exd4 {[%clk 0:02:03]}  cxd4 {[%clk 0:01:06]} 24. Qd2 {[%clk 0:01:55]}  Qh5 {[%clk 0:00:51]} 25. Re1 {[%clk 0:01:54]}  Be5 {[%clk 0:00:42]} 26. Re4 {[%clk 0:01:20]}  Nf5 {[%clk 0:00:26]} 27. g4 {[%clk 0:01:13]}  Qh6 {[%clk 0:00:26]} 28. Qxh6 {[%clk 0:01:12]}  Nxh6 {[%clk 0:00:27]} 29. Rae1 {[%clk 0:01:11]}  f6 {[%clk 0:00:20]} 30. f4 {[%clk 0:01:10]}  Nf7 {[%clk 0:00:15]} 31. fxe5 {[%clk 0:01:10]}  Nxe5 {[%clk 0:00:15]} 32. Bxd4 {[%clk 0:01:08]}  Rxd4 {[%clk 0:00:11]} 33. Rxd4 {[%clk 0:01:09]}  Nf3+ {[%clk 0:00:11]} 34. Bxf3 {[%clk 0:01:09]}  Rxe1+ {[%clk 0:00:12]} 35. Kf2 {[%clk 0:01:09]}  Ra1 {[%clk 0:00:12]} 36. Rd8+ {[%clk 0:01:09]}  Kg7 {[%clk 0:00:12]} 37. Rd7+ {[%clk 0:01:10]}  Kh6 {[%clk 0:00:13]} 38. Rxa7 {[%clk 0:01:11]}  Kg5 {[%clk 0:00:13]} 39. Kg3 {[%clk 0:01:10]}  h5 {[%clk 0:00:14]} 40. h4+ {[%clk 0:01:10]}  Kh6 {[%clk 0:00:13]} 41. gxh5 {[%clk 0:01:11]}  gxh5 {[%clk 0:00:13]} 42. c5 {[%clk 0:01:12]}  Rc1 {[%clk 0:00:13]} 43. c6 {[%clk 0:01:12]}  Rg1+ {[%clk 0:00:13]} 44. Bg2 {[%clk 0:01:12]}  Rc1 {[%clk 0:00:14]} 45. b4 {[%clk 0:01:12]}  Rc3+ {[%clk 0:00:14]} 46. Bf3 {[%clk 0:01:12]}  Rc2 {[%clk 0:00:15]} 47. b5 {[%clk 0:01:12]}  f5 {[%clk 0:00:16]} 48. b6 {[%clk 0:01:11]}  f4+ {[%clk 0:00:16]} 49. Kxf4 {[%clk 0:01:10]}  Rc4+ {[%clk 0:00:17]} 50. Ke3 {[%clk 0:01:10]}  Rc3+ {[%clk 0:00:17]} 51. Ke2 {[%clk 0:01:08]}  Rc2+ {[%clk 0:00:18]} 52. Kd3 {[%clk 0:01:08]}  Rf2 {[%clk 0:00:17]} 53. Ke3 {[%clk 0:01:08]}  Rc2 {[%clk 0:00:18]} 54. c7 {[%clk 0:01:09]}  Rc3+ {[%clk 0:00:17]} 55. Kd4 {[%clk 0:01:09]}  Rc1 {[%clk 0:00:18]} 56. Bd5 {[%clk 0:01:08]}  Rd1+ {[%clk 0:00:18]} 57. Kc5 {[%clk 0:01:08]}  Rc1+ {[%clk 0:00:19]} 58. Bc4 {[%clk 0:01:08]}  Rg1 {[%clk 0:00:10]} 59. c8=Q {[%clk 0:01:08]}  Rg8 {[%clk 0:00:11]} 60. Qe6+ {[%clk 0:01:06]}  Rg6 {[%clk 0:00:11]} 61. Qe3+ {[%clk 0:01:06]}  Rg5+ {[%clk 0:00:10]} 62. Qxg5# {[%clk 0:01:07]} 1-0


[Site "https://www.chess.com"]